bitfinex/quotes_SOLUSD_20241115
["timestamp","ask_amount","ask_price","bid_price","bid_amount"]
[1731632533194,23.87747909,209.83,209.76,23.77747909]
[1731632533785,23.77747909,209.83,209.76,23.77747909]
[1731632533978,23.87747909,209.83,209.76,28.54457909]
[1731632534175,23.77747909,209.83,209.76,28.54457909]
[1731632534379,23.87747909,209.83,209.76,28.54457909]
[1731632534689,23.87747909,209.83,209.67,29.99214402]
[1731632534690,23.77747909,209.81,209.74,28.54517909]
[1731632535197,0.10182579,209.75,209.74,28.54517909]
[1731632536375,0.10182579,209.75,209.74,4.7677]
[1731632537493,0.10182579,209.75,209.73,23.77747909]
[1731632537892,0.10182579,209.75,209.72,23.77747909]
[1731632538091,0.10182579,209.75,209.7,23.77747909]
[1731632538495,23.77747909,209.73,209.65,28.54727909]
[1731632538895,39.02867909,209.74,209.66,23.90296909]
[1731632539097,15.2512,209.74,209.71,23.77747909]
[1731632539305,15.2512,209.74,209.68,23.77747909]
[1731632539598,23.77747909,209.73,209.67,4.7691]
[1731632539819,23.77747909,209.72,209.67,4.7691]
[1731632539996,39.22867909,209.74,209.67,4.7691]
[1731632540296,23.77747909,209.73,209.66,23.77747909]
[1731632540504,23.77747909,209.72,209.66,4.7695]
[1731632541175,23.77747909,209.72,209.62,0.4549818]
[1731632541385,23.77747909,209.67,209.62,0.4549818]
[1731632541603,23.77747909,209.66,209.62,0.4549818]
[1731632542408,23.77747909,209.63,209.62,0.4549818]
[1731632543483,23.87747909,209.63,209.62,0.4549818]
[1731632543678,43.87747909,209.63,209.62,0.4549818]
[1731632543878,0.1,209.6,209.51,4.7729]
[1731632544084,23.77747909,209.58,209.51,28.55037909]
[1731632544297,23.87747909,209.6,209.51,4.7729]
[1731632544506,23.87747909,209.6,209.52,23.77747909]
[1731632544507,23.77747909,209.59,209.52,23.77747909]
[1731632544684,23.77747909,209.58,209.51,28.55037909]
[1731632548509,23.77747909,209.6,209.53,23.77747909]
[1731632548718,0.1,209.62,209.55,23.77747909]
[1731632549008,23.87747909,209.65,209.58,23.77747909]
[1731632549221,23.77747909,209.63,209.56,23.77747909]
[1731632549384,23.77747909,209.63,209.55,23.77747909]
[1731632549583,23.77747909,209.63,209.56,23.77747909]
[1731632549783,23.77747909,209.64,209.56,23.77747909]
[1731632549979,23.77747909,209.63,209.56,23.77747909]
[1731632550412,23.77747909,209.61,209.55,4.7721]
[1731632550591,4.7703,209.63,209.55,4.7721]
[1731632550592,23.77747909,209.63,209.55,28.54957909]
[1731632550927,23.77747909,209.63,209.56,23.77747909]
[1731632551406,23.77747909,209.63,209.55,4.7721]
[1731632551407,23.77747909,209.63,209.55,28.54957909]
[1731632553506,23.77747909,209.63,209.56,23.77747909]
[1731632554491,23.77747909,209.63,209.55,23.77747909]
[1731632554993,23.77747909,209.61,209.56,4.7719]
[1731632555195,0.0876844,209.57,209.56,4.7719]
[1731632555713,0.0876844,209.57,209.5,4.7732]
[1731632555901,0.0876844,209.57,209.5,28.55067909]
[1731632556289,0.0876844,209.57,209.51,23.77747909]
[1731632556687,0.0876844,209.57,209.52,0.12549]
[1731632556894,0.0876844,209.57,209.51,23.77747909]
[1731632557112,4.7634,209.93,209.72,5.7686]
[1731632557293,4.7629,209.96,209.88,23.77747909]
[1731632557487,23.77747909,209.97,209.88,0.28]
[1731632557686,23.77747909,209.97,209.86,23.87747909]
[1731632557887,20.93482402,210.02,209.94,58.67431266]
[1731632558103,28.31368632,210.02,209.94,42.00771266]
[1731632558418,0.12549,210.0,209.73,0.1]
[1731632558622,251.11512262,210.01,209.73,0.28]
[1731632558623,0.12549,209.94,209.73,0.28]
[1731632558819,0.12549,209.94,209.68,132.01474217]
[1731632558820,0.12549,209.92,209.69,0.1]
[1731632559130,0.12549,209.92,209.68,132.01474217]
[1731632559131,28.54327909,209.83,209.74,23.77747909]
[1731632559298,75.85330784,209.82,209.69,0.12549]
[1731632559496,0.2,209.78,209.71,23.77747909]
[1731632559717,86.55297977,209.75,209.73,23.77747909]
[1731632560022,75.85330784,209.74,209.73,23.77747909]
[1731632560329,20.0,209.73,209.68,131.91474217]
[1731632560625,0.1,209.72,209.68,131.91474217]
[1731632561215,0.1,209.74,209.68,155.69222126]
[1731632561422,24.8678,209.74,209.68,155.69222126]
[1731632561799,4.8678,209.74,209.68,155.69222126]
[1731632562018,20.0,209.77,209.7,23.77747909]
[1731632562216,101.0784764,209.78,209.72,23.77747909]
[1731632562421,101.0784764,209.78,209.74,23.77747909]
[1731632562616,0.1,209.78,209.74,23.77747909]
[1731632562918,4.7671,209.77,209.74,23.77747909]
[1731632563122,0.1,209.78,209.74,23.77747909]
[1731632563810,20.1,209.78,209.74,23.77747909]
[1731632564027,4.7671,209.77,209.74,23.77747909]
[1731632564914,20.1,209.73,209.68,155.69222126]
[1731632565122,20.2,209.73,209.68,155.69222126]
[1731632565504,20.1,209.73,209.68,155.69222126]
[1731632565703,0.1,209.69,209.68,131.91474217]
[1731632566034,43.976884,209.69,209.68,131.91474217]
[1731632567025,48.871274,209.69,209.68,115.24814217]
[1731632567329,48.871274,209.69,209.68,81.91494217]
[1731632567628,0.1,209.63,209.55,23.77747909]
[1731632567831,20.0,209.64,209.57,23.77747909]
[1731632568119,23.77747909,209.65,209.57,23.77747909]
[1731632568526,0.1,209.66,209.59,23.77747909]
[1731632568738,20.0,209.65,209.59,23.77747909]
[1731632569521,4.8696,209.66,209.59,23.77747909]
[1731632569739,23.87747909,209.73,209.65,23.77747909]
[1731632570026,23.77747909,209.73,209.66,23.77747909]
[1731632570229,28.64537909,209.74,209.66,23.77747909]
[1731632570525,4.7679,209.74,209.68,23.77747909]
[1731632570710,0.1,209.74,209.68,23.77747909]
[1731632570921,23.77747909,209.73,209.66,23.77747909]
[1731632571512,28.74547909,209.74,209.66,23.77747909]
[1731632571827,47.65436309,209.72,209.65,23.77747909]
[1731632572005,47.65436309,209.72,209.55,4.7721]
[1731632572006,23.876884,209.7,209.64,23.77747909]
[1731632572335,23.776884,209.7,209.64,23.77747909]
[1731632572534,23.776884,209.71,209.64,23.77747909]
[1731632572843,43.87747909,209.7,209.63,23.77747909]
[1731632573001,43.77747909,209.68,209.61,23.77747909]
[1731632573205,43.77747909,209.68,209.56,4.89729]
[1731632573206,20.0,209.66,209.59,23.77747909]
[1731632574440,0.1,209.75,209.65,23.77747909]
[1731632574727,0.1,209.73,209.65,23.77747909]
[1731632575104,23.77747909,209.72,209.65,23.77747909]
[1731632575325,0.09415721,209.66,209.65,23.77747909]
[1731632576312,0.09415721,209.66,209.65,28.54727909]
[1731632576930,0.0886976,209.69,209.65,43.86126909]
[1731632577135,0.08647628,209.75,209.68,23.77747909]
[1731632577446,0.08647628,209.75,209.71,23.77747909]
[1731632577729,0.08647628,209.75,209.71,28.67136909]
[1731632578107,0.08647628,209.75,209.72,0.12549]
[1731632579420,6.4807,209.9,209.74,0.12549]
[1731632579611,4.7638,209.92,209.85,23.77747909]
[1731632579811,4.7638,209.92,209.85,0.60369061]
[1731632580825,23.87747909,209.93,209.85,5.36889061]
[1731632581213,23.77747909,209.93,209.85,5.36889061]
[1731632581413,4.7633,209.94,209.87,23.77747909]
[1731632581619,31.27894421,209.95,209.87,28.54217909]
[1731632581620,23.77747909,209.95,209.87,28.54217909]
[1731632581828,23.77747909,209.97,209.89,23.77747909]
[1731632582123,28.54007909,209.97,209.89,23.77747909]
[1731632583225,28.54007909,209.97,209.87,4.7647]
[1731632583226,23.77747909,209.99,209.91,23.77747909]
[1731632583430,23.77747909,209.99,209.93,23.77747909]
[1731632583741,23.77747909,210.02,209.93,23.77747909]
[1731632584038,23.77747909,209.96,209.89,23.77747909]
[1731632584341,23.77747909,209.98,209.91,23.77747909]
[1731632584861,23.77747909,209.99,209.92,23.77747909]
[1731632585027,23.77747909,210.01,209.92,23.77747909]
[1731632585230,23.77747909,210.01,209.93,4.7634]
[1731632586714,23.77747909,209.99,209.93,4.7634]
[1731632587727,23.77747909,209.97,209.9,23.77747909]
[1731632587925,4.7617,210.01,209.81,15.9098]
[1731632587926,23.77747909,209.95,209.88,23.77747909]
[1731632588325,23.77747909,209.95,209.85,4.7653]
[1731632588326,23.77747909,209.91,209.85,4.7653]
[1731632588539,23.77747909,209.89,209.85,4.7653]
[1731632588721,0.1,209.95,209.85,4.7653]
[1731632588722,23.77747909,209.91,209.85,4.7653]
[1731632591537,23.77747909,209.95,209.87,23.77747909]
[1731632592638,23.77747909,209.97,209.89,23.77747909]
[1731632592826,23.77747909,209.99,209.91,23.77747909]
[1731632593520,23.77747909,209.99,209.92,4.7637]
[1731632594215,23.77747909,209.97,209.92,4.7637]
[1731632594817,23.77747909,209.97,209.9,4.7641]
[1731632595342,0.10382629,209.91,209.9,4.7641]
[1731632595538,0.10382629,209.91,209.9,28.54157909]
[1731632595846,0.09885385,209.93,209.9,28.54157909]
[1731632595847,0.08819704,209.93,209.91,15.8988]
[1731632596016,0.08819704,209.93,209.92,23.77747909]
[1731632596724,0.10322811,209.94,209.92,28.54117909]
[1731632597042,0.10322811,209.94,209.93,23.77747909]
[1731632597543,0.10322811,209.94,209.93,23.90296909]
[1731632598734,0.08886661,209.95,209.94,0.12549]
[1731632599056,0.08886661,209.95,209.94,4.88869]
[1731632599438,0.10181242,209.99,209.94,28.66616909]
[1731632599637,0.10181242,209.99,209.95,23.90296909]
[1731632603450,0.10181242,209.99,209.96,0.12549]
[1731632603747,0.10181242,209.99,209.96,23.90296909]
[1731632605024,0.10181242,209.99,209.97,23.77747909]
[1731632605650,0.10181242,209.99,209.97,47.68044818]
[1731632605832,4.759,210.13,209.98,47.55495818]
[1731632606159,30.66786089,210.14,210.07,23.77747909]
[1731632606656,0.4549818,210.14,210.09,23.77747909]
[1731632606955,23.5352,210.23,210.04,16.6311]
[1731632606956,4.756,210.26,210.13,23.77747909]
[1731632607158,0.1,210.3,210.24,23.77747909]
[1731632607451,30.02087909,210.31,210.16,0.12549]
[1731632607628,23.77747909,210.33,210.26,23.77747909]
[1731632607833,28.63197909,210.33,210.26,23.77747909]
[1731632608058,0.4549818,210.35,210.16,0.22549]
[1731632608059,23.77747909,210.34,210.27,23.77747909]
[1731632608230,28.98646089,210.35,210.28,23.77747909]
[1731632608627,0.4549818,210.35,210.28,23.77747909]
[1731632609032,0.4549818,210.35,210.18,0.1]
[1731632609033,0.4549818,210.35,210.32,23.77747909]
[1731632609258,0.4549818,210.35,210.28,23.77747909]
[1731632609630,23.77747909,210.32,210.15,26.89378078]
[1731632609835,23.77747909,210.32,210.16,23.776884]
[1731632610153,23.77747909,210.31,210.23,23.77747909]
[1731632610329,23.77747909,210.3,210.22,23.77747909]
[1731632610645,5.3090818,210.35,210.15,23.2402]
[1731632610646,23.77747909,210.32,210.24,23.77747909]
[1731632610953,23.77747909,210.32,210.2,23.77747909]
[1731632610954,23.77747909,210.28,210.2,23.77747909]
[1731632611168,20.0,210.3,210.19,23.77747909]
[1731632611455,23.77747909,210.27,210.2,23.77747909]
[1731632611951,23.77747909,210.27,210.19,23.77747909]
[1731632612250,23.87747909,210.36,210.25,23.77747909]
[1731632612251,23.77747909,210.36,210.25,23.77747909]
[1731632612460,6.5165,210.42,210.27,23.77747909]
[1731632612461,23.77747909,210.34,210.27,23.77747909]
[1731632612765,23.77747909,210.36,210.27,23.77747909]
[1731632613134,23.77747909,210.38,210.29,23.77747909]
[1731632613330,23.77747909,210.38,210.31,23.77747909]
[1731632614741,23.77747909,210.36,210.29,23.77747909]
[1731632615337,0.08847041,210.3,210.29,23.77747909]
[1731632619355,0.08847041,210.3,210.29,23.90296909]
[1731632619870,0.08847041,210.3,210.29,47.67985309]
[1731632621882,0.08631846,210.32,210.3,47.77985309]
[1731632622170,6.6115,210.47,210.33,23.776884]
[1731632622343,6.6115,210.47,210.34,47.55495818]
[1731632622548,6.6115,210.47,210.34,47.77985309]
[1731632623644,3.66523959,210.57,210.34,47.77985309]
[1731632623645,23.77747909,210.51,210.35,23.902374]
[1731632623846,6.6528,210.52,210.35,23.902374]
[1731632623847,30.43027909,210.52,210.36,0.1]
[1731632624170,30.43027909,210.52,210.38,39.570174]
[1731632624171,8.081e-05,210.39,210.38,39.570174]
[1731632624371,6.6528,210.52,210.39,23.776884]
[1731632624548,6.6528,210.52,210.46,23.77747909]
[1731632624750,6.6528,210.52,210.47,23.77747909]
[1731632624965,6.6528,210.52,210.39,23.876884]
[1731632624966,6.6528,210.52,210.48,23.77747909]
[1731632625270,23.77747909,210.55,210.48,23.77747909]
[1731632626672,28.98176089,210.56,210.49,23.77747909]
[1731632627048,23.776884,210.55,210.49,23.77747909]
[1731632627379,47.55436309,210.55,210.48,23.77747909]
[1731632628048,23.77747909,210.55,210.49,0.12549]
[1731632628252,23.77747909,210.55,210.48,23.77747909]
[1731632628253,0.4549818,210.56,210.54,23.77747909]
[1731632628466,0.4549818,210.56,210.55,23.77747909]
[1731632629751,0.4549818,210.56,210.53,23.77747909]
[1731632630164,0.4549818,210.56,210.51,23.77747909]
[1731632630954,0.4549818,210.56,210.53,23.77747909]
[1731632632078,0.4549818,210.56,210.51,23.77747909]
[1731632632251,0.4549818,210.56,210.5,23.77747909]
[1731632632448,0.4549818,210.56,210.4,0.22549]
[1731632632449,23.77747909,210.55,210.47,23.77747909]
[1731632632669,23.77747909,210.52,210.45,23.77747909]
[1731632632873,23.776884,210.55,210.38,15.5678]
[1731632632874,23.77747909,210.53,210.46,23.77747909]
[1731632633273,23.77747909,210.54,210.46,23.77747909]
[1731632633576,23.77747909,210.53,210.46,23.77747909]
[1731632633789,23.776884,210.55,210.46,23.77747909]
[1731632633790,23.77747909,210.54,210.46,23.77747909]
[1731632634289,23.77747909,210.54,210.4,3.6910814]
[1731632634290,23.77747909,210.53,210.45,23.77747909]
[1731632634881,23.77747909,210.53,210.4,3.6910814]
[1731632634882,23.77747909,210.5,210.42,23.77747909]
[1731632635073,30.228184,210.52,210.38,15.5678]
[1731632635074,23.77747909,210.45,210.38,15.5678]
[1731632635270,23.77747909,210.45,210.36,0.71277584]
[1731632635271,23.87784823,210.43,210.36,24.49025493]
[1731632635473,23.77747909,210.42,210.36,0.71277584]
[1731632635875,0.10036914,210.43,210.36,0.71277584]
[1731632636081,0.10036914,210.43,210.38,23.77747909]
[1731632636268,0.10036914,210.43,210.4,23.77747909]
[1731632636482,0.10036914,210.43,210.42,23.77747909]
[1731632636683,0.10036914,210.43,210.42,23.90296909]
[1731632638902,0.10036914,210.43,210.4,23.77747909]
[1731632639499,0.10036914,210.43,210.41,23.77747909]
[1731632640279,0.10036914,210.43,210.4,0.12549]
[1731632641000,0.10036914,210.43,210.41,23.77747909]
[1731632641587,0.10036914,210.43,210.39,23.77747909]
[1731632641898,23.77747909,210.4,210.36,0.71277584]
[1731632642098,23.77747909,210.38,210.36,0.71277584]
[1731632643083,23.776884,210.37,210.26,15.3683]
[1731632643284,23.776884,210.37,210.25,23.77747909]
[1731632643285,23.77747909,210.33,210.25,23.77747909]
[1731632643476,23.77747909,210.37,210.29,23.77747909]
[1731632643781,23.77747909,210.39,210.31,23.77747909]
[1731632643983,23.77747909,210.39,210.33,23.77747909]
[1731632644197,23.77747909,210.39,210.31,23.77747909]
[1731632644502,23.77747909,210.37,210.28,23.77747909]
[1731632644799,23.77747909,210.33,210.26,23.77747909]
[1731632645100,23.77747909,210.35,210.27,23.77747909]
[1731632646798,23.77747909,210.37,210.29,23.77747909]
[1731632647012,23.776884,210.36,210.29,23.77747909]
[1731632647309,23.77747909,210.31,210.23,23.77747909]
[1731632648185,47.55436309,210.36,210.22,0.71327681]
[1731632648186,23.77747909,210.26,210.22,0.71327681]
[1731632649914,23.77747909,210.29,210.22,0.71327681]
[1731632650117,23.77747909,210.31,210.23,23.77747909]
[1731632650609,23.77747909,210.31,210.22,0.71327681]
[1731632650610,23.77747909,210.28,210.22,0.71327681]
[1731632650806,23.77747909,210.27,210.22,0.71327681]
[1731632650985,23.77747909,210.25,210.22,0.71327681]
[1731632651387,23.77747909,210.29,210.22,0.71327681]
[1731632651585,23.776884,210.28,210.22,0.71327681]
[1731632651805,47.55436309,210.28,210.22,0.71327681]
[1731632653503,23.77747909,210.28,210.22,0.71327681]
[1731632653688,23.77747909,210.3,210.23,23.77747909]
[1731632654908,23.77747909,210.3,210.22,24.4907559]
[1731632655210,0.09869491,210.23,210.22,24.4907559]
[1731632655515,0.09869491,210.23,210.22,0.71327681]
[1731632658706,0.09869491,210.23,210.22,24.6162459]
[1731632658889,0.09869491,210.23,210.22,24.4907559]
[1731632659396,0.09869491,210.23,210.22,0.71327681]
[1731632659710,0.09869491,210.23,210.22,24.6162459]
[1731632660213,0.09869491,210.23,210.22,30.9086459]
[1731632660515,0.09869491,210.23,210.22,0.71327681]
[1731632661410,0.09869491,210.23,210.22,24.4907559]
[1731632661797,0.09869491,210.23,210.22,24.6162459]
[1731632664325,0.09869491,210.23,210.22,73.22170143]
[1731632664495,0.10114851,210.24,210.23,71.45733218]
[1731632666611,6.3486,210.4,210.27,158.23703372]
[1731632666813,6.3486,210.4,210.27,23.90296909]
[1731632667112,23.77747909,210.42,210.27,47.77985309]
[1731632667894,23.77747909,210.44,210.28,23.902374]
[1731632668095,9.224e-05,210.29,210.28,30.137074]
[1731632669415,23.77747909,210.44,210.29,0.1]
[1731632669603,23.77747909,210.44,210.29,47.77985309]
[1731632669809,6.4333,210.45,210.34,158.3]
[1731632670116,30.08207909,210.5,210.42,23.77747909]
[1731632671112,30.08207909,210.5,210.43,23.77747909]
[1731632671417,23.776884,210.49,210.42,23.77747909]
[1731632672503,23.776884,210.49,210.43,23.77747909]
[1731632673002,47.55436309,210.49,210.42,23.77747909]
[1731632673595,47.55436309,210.49,210.41,23.77747909]
[1731632673924,23.776884,210.49,210.42,23.77747909]
[1731632674227,6.3046,210.5,210.43,23.77747909]
[1731632674403,6.3046,210.5,210.45,23.77747909]
[1731632674604,23.77747909,210.53,210.45,23.77747909]
[1731632675222,0.09699441,210.47,210.46,23.77747909]
[1731632676323,0.09699441,210.47,210.43,23.77747909]
[1731632676521,0.09699441,210.47,210.44,23.77747909]
[1731632676706,0.09699441,210.47,210.45,23.77747909]
[1731632676908,0.09699441,210.47,210.46,23.77747909]
[1731632677718,0.09699441,210.47,210.46,23.90296909]
[1731632678897,0.09699441,210.47,210.46,23.77747909]
[1731632682225,0.09699441,210.47,210.42,23.77747909]
[1731632683200,0.09699441,210.47,210.43,23.77747909]
[1731632683911,0.09699441,210.47,210.42,23.90296909]
[1731632684626,0.09699441,210.47,210.36,30.37337909]
[1731632684627,23.77747909,210.43,210.31,23.77747909]
[1731632684821,23.77747909,210.38,210.31,23.77747909]
[1731632685019,23.77747909,210.38,210.32,0.12549]
[1731632685225,23.77747909,210.39,210.32,0.12549]
[1731632685722,23.77747909,210.39,210.32,23.77747909]
[1731632685924,29.95127909,210.44,210.37,23.77747909]
[1731632686125,23.77747909,210.46,210.39,23.77747909]
[1731632686308,0.09699441,210.47,210.41,23.77747909]
[1731632686508,0.09699441,210.47,210.43,23.77747909]
[1731632688410,0.09699441,210.47,210.44,23.77747909]
[1731632688932,0.09699441,210.47,210.44,14.77432148]
[1731632690927,0.09699441,210.47,210.45,14.89981148]
[1731632691131,0.09699441,210.47,210.46,14.77432148]
[1731632692445,0.09699441,210.47,210.45,14.89981148]
[1731632692738,0.09699441,210.47,210.45,14.77432148]
[1731632693124,0.09699441,210.47,210.46,14.77432148]
[1731632693833,0.09699441,210.47,210.46,14.89981148]
[1731632694135,0.10255797,210.48,210.46,14.89981148]
[1731632694343,0.10255797,210.48,210.47,14.89981148]
[1731632694632,0.10255797,210.48,210.47,38.67669548]
[1731632695215,0.18876442,210.48,210.47,38.67669548]
[1731632695728,0.08620645,210.48,210.47,38.67669548]
[1731632696725,0.0938386,210.49,210.48,23.776884]
[1731632696932,0.0938386,210.49,210.48,53.32552696]
[1731632697320,0.0938386,210.49,210.48,53.45101696]
[1731632698342,6.987e-05,210.5,210.49,0.12549]
[1731632698639,6.987e-05,210.5,210.49,14.89981148]
[1731632699020,6.987e-05,210.5,210.49,38.67669548]
[1731632699817,6.987e-05,210.5,210.48,14.77432148]
[1731632699818,0.07175132,210.51,210.5,38.67669548]
[1731632700230,0.00179311,210.53,210.51,0.12549]
[1731632700438,0.00179311,210.53,210.52,53.66080548]
[1731632700825,14.77432148,210.68,210.53,23.902374]
[1731632701026,6.4245,210.7,210.53,23.902374]
[1731632701027,6.4245,210.7,210.54,0.1]
[1731632701213,6.4245,210.7,210.64,14.77432148]
[1731632701420,6.4245,210.7,210.65,14.77432148]
[1731632702614,6.4245,210.7,210.66,14.77432148]
[1731632702940,14.77432148,210.73,210.66,14.77432148]
[1731632703141,14.77432148,210.74,210.67,14.77432148]
[1731632703721,14.77432148,210.73,210.67,14.77432148]
[1731632704136,14.77432148,210.73,210.66,14.77432148]
[1731632704330,14.77432148,210.73,210.67,14.77432148]
[1731632704620,20.80062148,210.76,210.7,14.77432148]
[1731632704971,0.4549818,210.77,210.75,14.77432148]
[1731632705126,0.4549818,210.77,210.76,14.77432148]
[1731632709344,0.4549818,210.77,210.74,16.185]
[1731632709550,0.4549818,210.77,210.69,6.0781]
[1731632709551,0.4549818,210.77,210.72,14.77432148]
[1731632709845,15.22930328,210.77,210.7,14.77432148]
[1731632710151,0.4549818,210.77,210.71,14.77432148]
[1731632710356,0.4549818,210.77,210.76,14.77432148]
[1731632710939,0.4549818,210.77,210.76,14.89981148]
[1731632712731,0.4549818,210.77,210.76,23.68745465]
[1731632716352,0.4549818,210.77,210.76,0.12549]
[1731632716551,0.4549818,210.77,210.72,23.56196465]
[1731632717049,0.4549818,210.77,210.75,0.12549]
[1731632717254,0.4549818,210.77,210.64,21.45439]
[1731632717558,11.1145,210.76,210.67,23.56196465]
[1731632717736,23.56196465,210.74,210.68,0.12549]
[1731632717932,6.3698,210.76,210.72,23.56196465]
[1731632718131,6.3698,210.76,210.64,15.43819]
[1731632718132,0.4549818,210.77,210.75,23.56196465]
[1731632718356,0.4549818,210.77,210.66,0.1]
[1731632718357,0.4549818,210.77,210.76,23.56196465]
[1731632718657,0.4549818,210.77,210.75,23.56196465]
[1731632718837,0.4549818,210.77,210.75,0.12549]
[1731632719040,0.4549818,210.77,210.75,23.56196465]
[1731632719845,0.4549818,210.77,210.71,23.56196465]
[1731632720143,23.56196465,210.75,210.68,23.56196465]
[1731632720351,5.1994818,210.77,210.64,19.19155496]
[1731632720352,23.56196465,210.74,210.66,23.56196465]
[1731632720556,23.56196465,210.71,210.64,0.12549]
[1731632720859,5.1994818,210.77,210.64,0.12549]
[1731632720860,23.56196465,210.66,210.64,0.12549]
[1731632721166,23.56196465,210.67,210.64,0.12549]
[1731632721372,6.6279,210.7,210.64,0.12549]
[1731632721373,23.56196465,210.66,210.64,0.12549]
[1731632721657,23.56196465,210.65,210.64,0.12549]
[1731632722235,6.6279,210.8,210.66,15.9436]
[1731632722439,23.56196465,210.79,210.71,23.56196465]
[1731632722743,6.6279,210.8,210.73,23.56196465]
[1731632722944,30.18986465,210.8,210.73,23.56196465]
[1731632723133,23.56196465,210.79,210.72,23.56196465]
[1731632723459,30.18986465,210.8,210.73,23.56196465]
[1731632723856,23.56196465,210.85,210.76,23.56196465]
[1731632724258,23.56196465,210.85,210.76,23.68745465]
[1731632724461,23.56196465,210.87,210.76,23.68745465]
[1731632724759,4.7419,210.89,210.76,23.902374]
[1731632724959,23.56196465,210.83,210.76,0.12549]
[1731632725144,23.56196465,210.81,210.73,23.56196465]
[1731632725466,23.56196465,210.82,210.73,23.56196465]
[1731632725762,23.56196465,210.82,210.75,23.56196465]
[1731632725961,23.56196465,210.84,210.75,23.56196465]
[1731632726340,23.56196465,210.82,210.75,23.56196465]
[1731632726655,23.56196465,210.78,210.71,23.56196465]
[1731632726972,23.56196465,210.79,210.71,23.56196465]
[1731632727838,6.2401,210.81,210.69,23.56196465]
[1731632727839,24.01694645,210.77,210.69,23.56196465]
[1731632728151,0.4549818,210.77,210.71,23.56196465]
[1731632729045,0.4549818,210.77,210.73,23.56196465]
[1731632729258,0.4549818,210.77,210.75,23.56196465]
[1731632730740,0.4549818,210.77,210.73,23.56196465]
[1731632730936,0.4549818,210.77,210.71,23.56196465]
[1731632733046,0.4549818,210.77,210.69,23.56196465]
[1731632734765,0.4549818,210.77,210.7,14.73825972]
[1731632736336,24.2318658,210.77,210.7,14.73825972]
[1731632737964,24.2318658,210.77,210.68,14.73825972]
[1731632738156,14.73825972,210.76,210.66,14.73825972]
[1731632738362,24.2318658,210.77,210.68,14.73825972]
[1731632738555,24.2318658,210.77,210.7,14.73825972]
[1731632738862,24.2318658,210.77,210.72,14.73825972]
[1731632738863,0.4549818,210.77,210.72,14.73825972]
[1731632739064,0.4549818,210.77,210.64,0.12549]
[1731632739065,0.4549818,210.77,210.76,14.73825972]
[1731632739672,6.5911,210.88,210.76,38.51514372]
[1731632739851,6.5911,210.88,210.85,14.73825972]
[1731632740670,6.5911,210.88,210.83,14.73825972]
[1731632740856,6.5911,210.88,210.82,23.55296497]
[1731632741051,30.14406497,210.88,210.8,23.55296497]
[1731632741659,6.5911,210.88,210.82,23.55296497]
[1731632743860,23.776884,210.87,210.8,23.55296497]
[1731632744479,23.55296497,210.86,210.78,23.55296497]
[1731632744770,23.55296497,210.86,210.79,23.55296497]
[1731632744976,23.55296497,210.82,210.75,23.55296497]
[1731632745567,23.55296497,210.83,210.76,23.55296497]
[1731632745871,23.55296497,210.83,210.73,23.55296497]
[1731632745872,23.55296497,210.8,210.73,23.55296497]
[1731632746247,23.55296497,210.81,210.73,23.55296497]
[1731632746449,23.55296497,210.81,210.74,23.55296497]
[1731632746666,23.55296497,210.79,210.72,23.55296497]
[1731632747456,29.82946497,210.78,210.71,23.55296497]
[1731632747766,29.82946497,210.78,210.66,23.776884]
[1731632747767,23.55296497,210.77,210.7,23.55296497]
[1731632748072,23.55296497,210.77,210.69,23.55296497]
[1731632748963,23.55296497,210.77,210.7,0.12549]
[1731632749168,23.55296497,210.77,210.7,23.55296497]
[1731632749369,6.2765,210.78,210.72,23.55296497]
[1731632749567,6.2765,210.78,210.73,23.55296497]
[1731632750275,29.82946497,210.78,210.7,23.55296497]
[1731632750650,29.82946497,210.78,210.71,0.12549]
[1731632751377,6.2765,210.78,210.73,23.55296497]
[1731632751552,6.2765,210.78,210.74,23.55296497]
[1731632751754,6.2765,210.78,210.75,23.55296497]
[1731632752166,6.3007,210.83,210.77,23.55296497]
[1731632752358,12.1846,210.87,210.72,23.55296497]
[1731632752359,12.1846,210.87,210.81,23.55296497]
[1731632752566,6.3007,210.88,210.84,23.55296497]
[1731632753881,6.3007,210.88,210.85,0.12549]
[1731632754576,42.21886497,210.93,210.86,23.55296497]
[1731632754776,6.4813,210.93,210.86,23.55296497]
[1731632754993,23.55296497,210.92,210.84,23.55296497]
[1731632755283,23.55296497,210.9,210.82,23.55296497]
[1731632755483,23.55296497,210.86,210.79,23.55296497]
[1731632755785,23.55296497,210.84,210.76,23.55296497]
[1731632755976,23.55296497,210.83,210.76,23.55296497]
[1731632756279,23.55296497,210.83,210.72,16.3381]
[1731632756280,23.55296497,210.84,210.77,23.67845497]
[1731632756480,23.55296497,210.84,210.77,0.12549]
[1731632757964,23.55296497,210.84,210.77,23.67845497]
[1731632758164,23.55296497,210.86,210.78,23.55296497]